fUST/lending_fUST_20251031
["ID","MTS","AMOUNT","RATE_DAILY","PERIOD"]
[392733338,1761886244125,-465.67,0.0003644,3]
[392733339,1761886244134,-206.54744414,0.0003644,3]
[392733340,1761886244144,-686.8051772,0.00036441,2]
[392733341,1761886244153,-2726.9991505,0.00036441,2]
[392733342,1761886244162,-12564.9868959,0.00036447,2]
[392733343,1761886244172,-188721.66815012,0.00036447,2]
[392733344,1761886244181,-486.861857,0.00036447,31]
[392733345,1761886244190,-486.861857,0.00036447,31]
[392733346,1761886244199,-486.861857,0.00036447,31]
[392733347,1761886244207,-486.861857,0.00036447,31]
[392733348,1761886244216,-486.861857,0.00036447,31]
[392733349,1761886244225,-486.861857,0.00036447,31]
[392733350,1761886244234,-486.861857,0.00036447,31]
[392733351,1761886244243,-486.861857,0.00036447,31]
[392733352,1761886244252,-151.492867,0.00036447,31]
[392733353,1761886244262,-195.238872,0.00036447,31]
[392733354,1761886244271,-282.256461,0.00036447,31]
[392733355,1761886244280,-282.256461,0.00036447,31]
[392733356,1761886244289,-282.256461,0.00036447,31]
[392733357,1761886244298,-185.655406,0.00036447,31]
[392733358,1761886244307,-282.256461,0.00036447,31]
[392733359,1761886244316,-282.256461,0.00036447,31]
[392733360,1761886244326,-282.256461,0.00036447,31]
[392733361,1761886244335,-282.256461,0.00036447,31]
[392733362,1761886244344,-282.256461,0.00036447,31]
[392733363,1761886244354,-151.0,0.00036447,31]
[392733364,1761886244363,-151.0,0.00036447,31]
[392733365,1761886244371,-159.97172,0.00036447,31]
[392733366,1761886244380,-159.97172,0.00036447,31]
[392733367,1761886244389,-159.97172,0.00036447,31]
[392733368,1761886244399,-159.97172,0.00036447,31]
[392733369,1761886244410,-159.97172,0.00036447,31]
[392733370,1761886244419,-159.97172,0.00036447,31]
[392733371,1761886244428,-159.97172,0.00036447,31]
[392733372,1761886244442,-159.971725,0.00036447,31]
[392733373,1761886244451,-151.0,0.00036447,31]
[392733374,1761886244460,-151.0,0.00036447,31]
[392733375,1761886244469,-151.0,0.00036449,31]
[392733376,1761886244479,-151.0,0.00036449,31]
[392733377,1761886244488,-160.208264,0.00036449,31]
[392733378,1761886244497,-235.259604,0.00036449,2]
[392733379,1761886244507,-235.259604,0.00036449,2]
[392733380,1761886244517,-235.259604,0.00036449,2]
[392733381,1761886244526,-235.259604,0.00036449,2]
[392733382,1761886244535,-235.259604,0.00036449,2]
[392733383,1761886244546,-235.259604,0.00036449,2]
[392733384,1761886244555,-235.259604,0.00036449,2]
[392733385,1761886244564,-235.259604,0.00036449,2]
[392733386,1761886244573,-235.259604,0.00036449,2]
[392733387,1761886244582,-235.259604,0.00036449,2]
[392733388,1761886244590,-235.259604,0.00036449,2]
[392733389,1761886244599,-235.259604,0.00036449,2]
[392733390,1761886244608,-151.0,0.00036449,30]
[392733391,1761886244617,-151.0,0.00036449,30]
[392733392,1761886244626,-151.0,0.00036449,30]
[392733393,1761886244636,-151.0,0.00036449,31]
[392733394,1761886244645,-151.0,0.00036449,31]
[392733395,1761886244654,-151.0,0.00036449,31]
[392733396,1761886244662,-151.0,0.00036449,31]
[392733397,1761886244672,-151.0,0.00036449,31]
[392733398,1761886244682,-151.0,0.00036449,31]
[392733399,1761886244692,-151.0,0.00036449,31]
[392733400,1761886244701,-486.861857,0.00036449,31]
[392733401,1761886244710,-151.0,0.00036449,31]
[392733402,1761886244719,-486.861857,0.00036449,31]
[392733403,1761886244728,-151.0,0.00036449,31]
[392733404,1761886244737,-151.0,0.00036449,31]
[392733405,1761886244746,-486.861857,0.00036449,31]
[392733406,1761886244755,-151.0,0.00036449,31]
[392733407,1761886244764,-486.861857,0.00036449,31]
[392733408,1761886244773,-185.099763,0.00036449,31]
[392733409,1761886244782,-486.861857,0.00036449,31]
[392733410,1761886244791,-486.861857,0.00036449,31]
[392733411,1761886244800,-486.861857,0.00036449,31]
[392733412,1761886244809,-486.861857,0.00036449,31]
[392733413,1761886244818,-282.256461,0.00036449,31]
[392733414,1761886244828,-282.256461,0.00036449,31]
[392733415,1761886244837,-282.256461,0.00036449,31]
[392733416,1761886244845,-282.256461,0.00036449,31]
[392733417,1761886244854,-282.256461,0.00036449,31]
[392733418,1761886244863,-282.256461,0.00036449,31]
[392733419,1761886244872,-282.256461,0.00036449,31]
[392733420,1761886244881,-282.256461,0.00036449,31]
[392733421,1761886244890,-2740.705755,0.0003645,2]
[392733422,1761886244899,-25401.0507049,0.0003645,2]
[392733423,1761886244907,-235.259604,0.0003645,2]
[392733424,1761886244916,-235.259604,0.0003645,2]
[392733425,1761886244925,-235.259604,0.0003645,2]
[392733426,1761886244935,-235.259604,0.0003645,2]
[392733427,1761886244943,-267.015872,0.0003645,30]
[392733428,1761886244952,-151.0,0.0003645,31]
[392733429,1761886244961,-151.0,0.0003645,31]
[392733430,1761886244970,-486.861857,0.0003645,31]
[392733431,1761886244980,-151.0,0.0003645,31]
[392733432,1761886244989,-486.861857,0.0003645,31]
[392733433,1761886244998,-486.861857,0.0003645,31]
[392733434,1761886245008,-486.861849,0.0003645,31]
[392733435,1761886245019,-282.256461,0.0003645,31]
[392733436,1761886245028,-282.256461,0.0003645,31]
[392733437,1761886245038,-282.256461,0.0003645,31]
[392733438,1761886245047,-282.25645159,0.0003645,31]
[392733439,1761886245056,-930.50067805,0.00036485,2]
[392733440,1761886245065,-330.17021956,0.00036485,2]
[392733441,1761886245075,-1654.22342764,0.00036485,2]
[392733442,1761886245084,-362.64553924,0.00036485,2]
[392733443,1761886245094,-2726.9991505,0.00036488,2]
[392733444,1761886245103,-1000.0,0.00036498,2]
[392733445,1761886245111,-1000.0,0.00036498,2]
[392733446,1761886245120,-1000.0,0.00036498,2]
[392733447,1761886245130,-1000.0,0.00036498,2]
[392733448,1761886245139,-1092.10286408,0.00036498,2]
[392733449,1761886245148,-151.0,0.00036498,2]
[392733450,1761886245157,-151.0,0.00036498,2]
[392733451,1761886245166,-151.0,0.00036498,2]
[392733452,1761886245175,-151.0,0.00036498,2]
[392733453,1761886245185,-151.0,0.00036498,2]
[392733454,1761886245194,-151.0,0.00036498,2]
[392733455,1761886245204,-151.0,0.00036498,2]
[392733456,1761886245213,-151.0,0.00036498,2]
[392733457,1761886245222,-151.0,0.00036498,2]
[392733458,1761886245231,-151.0,0.00036498,2]
[392733459,1761886245241,-151.0,0.00036498,2]
[392733460,1761886245250,-151.0,0.00036498,2]
[392733461,1761886245260,-151.0,0.00036498,2]
[392733462,1761886245270,-151.0,0.00036498,2]
[392733463,1761886245279,-151.0,0.00036498,2]
[392733464,1761886245288,-151.0,0.00036498,2]
[392733465,1761886245298,-151.0,0.00036498,2]
[392733466,1761886245307,-151.0,0.00036498,2]
[392733467,1761886245316,-151.0,0.00036498,2]
[392733468,1761886245326,-151.0,0.00036498,2]
[392733469,1761886245336,-206.54744414,0.00036509,3]
[392733470,1761886245346,-151.0,0.0003651,31]
[392733471,1761886245355,-151.0,0.0003651,7]
[392733472,1761886245364,-151.0,0.0003651,31]
[392733473,1761886245374,-151.0,0.0003651,31]
[392733474,1761886245383,-151.0,0.0003651,31]
[392733475,1761886245391,-151.0,0.0003651,31]
[392733476,1761886245401,-235.259604,0.0003651,2]
[392733477,1761886245410,-235.259604,0.0003651,2]
[392733478,1761886245419,-235.259604,0.0003651,2]
[392733479,1761886245429,-235.259596,0.0003651,2]
[392733480,1761886245442,-151.0,0.0003651,31]
[392733481,1761886245452,-151.0,0.0003651,31]
[392733482,1761886245461,-151.0,0.0003651,31]
[392733483,1761886245470,-326.53672266,0.00036517,120]
[392733484,1761886245481,-151.0,0.00036518,31]
[392733485,1761886245492,-151.0,0.00036518,31]
[392733486,1761886245501,-151.0,0.00036518,31]
[392733487,1761886245512,-151.0,0.00036518,31]
[392733488,1761886245521,-151.0,0.00036518,31]
[392733489,1761886245530,-151.0,0.00036518,31]
[392733490,1761886245540,-233.586061,0.00036518,31]
[392733492,1761886245549,-500.0,0.00036518,2]
[392733493,1761886245558,-500.0,0.00036518,2]
[392733494,1761886245567,-169.623939,0.00036518,31]
[392733495,1761886245575,-151.0,0.00036518,31]
[392733496,1761886245584,-151.0,0.00036518,31]
[392733497,1761886245593,-151.000001,0.00036518,31]
[392733498,1761886245603,-151.0,0.00036518,31]
[392733499,1761886245612,-151.659715,0.00036518,31]
[392733500,1761886245622,-164.635929,0.00036518,31]
[392733501,1761886245631,-151.0,0.00036518,7]
[392733502,1761886245640,-151.0,0.00036518,7]
[392733503,1761886245649,-172.826613,0.00036518,7]
[392733504,1761886245658,-151.0,0.00036518,31]
[392733505,1761886245667,-151.0,0.00036518,31]
[392733506,1761886245676,-151.0,0.00036518,31]
[392733507,1761886245686,-151.0,0.00036518,31]
[392733508,1761886245695,-151.0,0.00036518,31]
[392733509,1761886245704,-151.0,0.00036518,31]
[392733510,1761886245713,-151.0,0.00036518,31]
[392733511,1761886245723,-151.0,0.00036518,31]
[392733512,1761886245732,-151.0,0.00036518,31]
[392733513,1761886245741,-151.0,0.00036518,31]
[392733514,1761886245749,-223.748089,0.00036518,31]
[392733515,1761886245759,-151.0,0.00036518,15]
[392733516,1761886245768,-173.2386471,0.00036518,15]
[392733517,1761886245777,-500.0,0.00036518,15]
[392733518,1761886245786,-151.0,0.00036519,31]
[392733519,1761886245795,-155.023758,0.00036519,31]
[392733520,1761886245805,-151.0,0.00036519,31]
[392733521,1761886245814,-151.0,0.00036519,31]
[392733522,1761886245823,-151.0,0.00036519,31]
[392733523,1761886245832,-178.838396,0.00036519,31]
[392733524,1761886245841,-151.918216,0.00036519,31]
[392733525,1761886245850,-151.918216,0.00036519,31]
[392733526,1761886245859,-151.918216,0.00036519,31]
[392733527,1761886245869,-151.918216,0.00036519,31]
[392733528,1761886245878,-151.0,0.00036519,31]
[392733529,1761886245887,-152.909305,0.00036519,31]
[392733530,1761886245896,-151.0,0.00036519,31]
[392733531,1761886245905,-151.0,0.00036519,31]
[392733532,1761886245914,-151.0,0.00036519,31]
[392733533,1761886245923,-571.767024,0.00036519,31]
[392733534,1761886246004,-151.0,0.00036519,31]
[392733535,1761886246014,-571.767024,0.00036519,31]
[392733536,1761886246023,-151.0,0.00036519,31]
[392733537,1761886246032,-151.0,0.00036519,31]
[392733538,1761886246041,-571.767024,0.00036519,31]
[392733539,1761886246049,-571.767024,0.00036519,31]
[392733540,1761886246058,-571.767024,0.00036519,31]
[392733541,1761886246068,-571.767024,0.00036519,31]
[392733542,1761886246077,-571.767024,0.00036519,31]
[392733544,1761886246087,-571.767024,0.00036519,31]
[392733545,1761886246096,-151.0,0.00036519,31]
[392733546,1761886246105,-151.0,0.00036519,31]
[392733547,1761886246114,-156.362068,0.00036519,31]
[392733548,1761886246123,-151.0,0.00036519,31]
[392733549,1761886246133,-151.0,0.00036519,31]
[392733550,1761886246143,-151.0,0.00036519,31]
[392733551,1761886246151,-500.0,0.00036519,2]
[392733552,1761886246160,-500.0,0.00036519,2]
[392733553,1761886246169,-500.0,0.00036519,2]
[392733554,1761886246179,-500.0,0.00036519,2]
[392733555,1761886246189,-500.0,0.00036519,2]
[392733556,1761886246198,-500.0,0.00036519,2]
[392733557,1761886246207,-500.0,0.00036519,2]
[392733558,1761886246217,-500.0,0.00036519,2]
[392733559,1761886246227,-500.0,0.00036519,2]
[392733560,1761886246236,-500.0,0.00036519,2]
[392733561,1761886246246,-151.0,0.00036519,31]
[392733562,1761886246255,-151.0,0.00036519,31]
[392733563,1761886246264,-151.0,0.00036519,31]
[392733564,1761886246273,-151.0,0.00036519,31]
[392733565,1761886246282,-500.0,0.00036519,4]
[392733566,1761886246291,-560.10303635,0.00036519,4]
[392733567,1761886246300,-500.0,0.00036519,2]
[392733568,1761886246310,-500.0,0.00036519,2]
[392733569,1761886246319,-500.0,0.00036519,2]
[392733570,1761886246328,-500.0,0.00036519,2]
[392733571,1761886246337,-500.0,0.00036519,2]
[392733572,1761886246346,-500.0,0.00036519,2]
[392733573,1761886246355,-512.98790868,0.00036519,2]
[392733574,1761886246364,-151.0,0.0003652,31]
[392733575,1761886246373,-201.567391,0.0003652,31]
[392733576,1761886246382,-151.0,0.0003652,31]
[392733577,1761886246392,-151.0,0.0003652,31]
[392733578,1761886246401,-151.918216,0.0003652,31]
[392733580,1761886246410,-151.918216,0.0003652,31]
[392733582,1761886246419,-151.918216,0.0003652,31]
[392733584,1761886246434,-151.918216,0.0003652,31]
[392733585,1761886246443,-151.0,0.0003652,31]
[392733586,1761886246452,-160.898253,0.0003652,31]
[392733587,1761886246461,-571.767024,0.0003652,31]
[392733588,1761886246471,-151.0,0.0003652,31]
[392733589,1761886246481,-571.767024,0.0003652,31]
[392733590,1761886246490,-571.767024,0.0003652,31]
[392733591,1761886246500,-571.767024,0.0003652,31]
[392733592,1761886246510,-151.0,0.0003652,31]
[392733593,1761886246519,-237.115667,0.0003652,31]
[392733594,1761886246528,-151.0,0.0003652,31]
[392733595,1761886246537,-151.0,0.0003652,31]
[392733596,1761886246546,-151.0,0.0003652,31]
[392733597,1761886246555,-156.75316744,0.00036525,45]
[392733598,1761886246564,-151.0,0.00036525,7]
[392733599,1761886246572,-151.0,0.00036525,7]
[392733600,1761886246581,-262.693622,0.00036525,7]
[392733601,1761886246590,-151.0,0.00036525,31]
[392733602,1761886246599,-151.0,0.00036525,31]
[392733603,1761886246608,-151.0,0.00036525,31]
[392733604,1761886246617,-151.0,0.00036525,31]
[392733605,1761886246626,-151.0,0.00036525,31]
[392733606,1761886246635,-154.548616,0.00036525,31]
[392733607,1761886246644,-317.45739,0.00036525,15]
[392733608,1761886246653,-317.45739,0.00036525,15]
[392733609,1761886246662,-317.45739,0.00036525,15]
[392733610,1761886246670,-317.45739,0.00036525,15]
[392733611,1761886246679,-151.0,0.00036525,31]
[392733612,1761886246692,-309.64792732,0.00036525,4]
[392733613,1761886246703,-206.54744414,0.00036526,3]
[392733614,1761886246713,-500.0,0.00036526,2]
[392733615,1761886246723,-151.0,0.00036527,31]
[392733616,1761886246732,-151.0,0.00036527,31]
[392733617,1761886246742,-151.0,0.00036527,31]
[392733618,1761886246751,-151.0,0.00036527,31]
[392733619,1761886246760,-181.122246,0.00036527,31]
[392733620,1761886246769,-151.0,0.00036527,31]
[392733621,1761886246778,-151.321451,0.00036527,31]
[392733622,1761886246788,-151.0,0.00036527,31]
[392733623,1761886246797,-151.0,0.00036527,31]
[392733624,1761886246807,-151.0,0.00036527,31]
[392733625,1761886246816,-151.0,0.00036527,31]
[392733626,1761886246825,-151.0,0.00036527,31]
[392733627,1761886246834,-151.0,0.00036527,31]
[392733628,1761886246844,-151.0,0.00036527,31]
[392733629,1761886246853,-153.011808,0.00036527,31]
[392733630,1761886246862,-151.0,0.00036527,31]
[392733631,1761886246871,-151.0,0.00036527,31]
[392733632,1761886246880,-164.179342,0.00036527,31]
[392733633,1761886246891,-317.45739,0.00036527,15]
[392733634,1761886246899,-317.45739,0.00036527,15]
[392733635,1761886246909,-317.45739,0.00036527,15]
[392733636,1761886246922,-317.45739,0.00036527,15]
[392733637,1761886246934,-151.525258,0.00036527,31]
[392733638,1761886246947,-151.0,0.00036527,31]
[392733639,1761886246959,-216.17931,0.00036527,31]
[392733640,1761886246971,-151.918216,0.00036527,31]
[392733641,1761886246981,-151.918216,0.00036527,31]
[392733642,1761886246992,-151.918216,0.00036527,31]
[392733643,1761886247005,-151.918216,0.00036527,31]
[392733644,1761886247016,-151.0,0.00036527,31]
[392733645,1761886247028,-571.767024,0.00036527,31]
[392733646,1761886247040,-151.0,0.00036527,31]
[392733647,1761886247052,-571.767024,0.00036527,31]
[392733648,1761886247065,-571.767024,0.00036527,31]
[392733649,1761886247076,-571.767024,0.00036527,31]
[392733650,1761886247087,-151.0,0.00036527,31]
[392733651,1761886247099,-235.34735,0.00036527,31]
[392733652,1761886247112,-151.0,0.00036527,31]
[392733653,1761886247124,-151.0,0.00036527,31]
[392733654,1761886247136,-151.0,0.0003653,31]
[392733655,1761886247148,-151.0,0.0003653,15]
[392733656,1761886247160,-151.0,0.0003653,31]
[392733657,1761886247171,-151.0,0.0003653,31]
[392733658,1761886247182,-151.0,0.0003653,31]
[392733659,1761886247193,-151.0,0.0003653,31]
[392733660,1761886247205,-151.0,0.0003653,31]
[392733661,1761886247218,-151.0,0.0003653,31]
[392733662,1761886247229,-151.0,0.0003653,31]
[392733663,1761886247240,-151.0,0.0003653,31]
[392733664,1761886247250,-151.0,0.0003653,7]
[392733665,1761886247259,-151.0,0.0003653,7]
[392733666,1761886247271,-151.0,0.0003653,31]
[392733667,1761886247281,-151.0,0.0003653,31]
[392733668,1761886247293,-151.918216,0.0003653,31]
[392733669,1761886247305,-151.918216,0.0003653,31]
[392733670,1761886247317,-151.918216,0.0003653,31]
[392733671,1761886247329,-151.918216,0.0003653,31]
[392733672,1761886247341,-466.91022174,0.0003653,2]
[392733673,1761886247354,-151.0,0.00036531,31]
[392733674,1761886247365,-159.766617,0.00036531,31]
[392733675,1761886247377,-317.45739,0.00036531,15]
[392733676,1761886247388,-317.45739,0.00036531,15]
[392733677,1761886247400,-317.45739,0.00036531,15]
[392733678,1761886247410,-317.45739,0.00036531,15]
[392733679,1761886247420,-151.0,0.00036531,31]
[392733680,1761886247430,-571.767024,0.00036531,31]
[392733681,1761886247443,-238.386648,0.00036531,31]
[392733682,1761886247455,-571.767024,0.00036531,31]
[392733683,1761886247467,-571.767024,0.00036531,31]
[392733684,1761886247481,-571.767027,0.00036531,31]
[392733685,1761886247493,-252.083043,0.00036531,31]
[392733686,1761886247503,-139530.66073006,0.00036531,4]
[392733687,1761886269595,150.0,0.0002589,2]
[392733688,1761886309082,269.77606365,0.000253,2]
[392733689,1761886342955,300.0,0.000259,2]
[392733690,1761886354705,300.0,0.000259,2]
[392733691,1761886365658,300.0,0.000259,2]
[392733692,1761886376515,300.0,0.000259,2]
[392733693,1761886388205,300.0,0.000259,2]
[392733694,1761886418783,500.0,0.00013699,2]
[392733695,1761886419203,500.0,0.00013973,2]
[392733696,1761886419715,227.93677747,0.00014247,2]
[392733697,1761886419737,272.06322253,0.00014247,2]
[392733698,1761886420216,26.13983185,0.00014521,2]
[392733699,1761886420238,473.87016815,0.00014521,2]
[392733701,1761886441648,509.06,0.00025205,2]
[392733702,1761886582976,339.391574,0.00013699,2]
[392733703,1761886583175,339.391574,0.00020187,2]
[392733704,1761886583776,-155.22230389,0.00026676,2]
[392733705,1761886585394,-155.22230389,0.00026676,2]
[392733706,1761886590102,-28.94696622,0.00026676,2]
[392733712,1761887090955,150.0,0.00011916,30]
[392733713,1761887091357,150.0,0.00012483,30]
[392733714,1761887091793,150.0,0.0001305,30]
[392733715,1761887092712,150.0,0.00013618,30]
[392733733,1761887165666,150.0,0.00013955,30]
[392733734,1761887166081,150.0,0.00015224,30]
[392733735,1761887235932,150.0,0.00014104,30]
[392733736,1761887236337,150.0,0.00015386,30]
[392733739,1761887280152,210.94,0.00018292,4]
[392733741,1761887388148,-352.09622945,0.00028505,2]
[392733742,1761887388177,-339.391574,0.00033165,2]
[392733743,1761887388207,-318.0,0.00034043,7]
[392733744,1761887388535,-0.01,0.000342,2]
[392733745,1761887388676,-1028.84880902,0.000342,2]
[392733746,1761887391054,-1028.86880902,0.000342,2]
[392733747,1761887391077,-7942.27238196,0.000342,2]
[392733748,1761887391177,-264.032548,0.00034236,2]
[392733749,1761887391206,-4471.944904,0.0003424,2]
[392733750,1761887391242,-528.055096,0.0003424,2]
[392733751,1761887397054,-207.56196742,0.00034464,2]
[392733752,1761887397088,-9584.88606516,0.0003447,2]
[392733753,1761887397182,-415.11393484,0.0003447,2]
[392733754,1761887399390,5000.0,0.0003415,2]
[392733757,1761887432239,-1121.0,0.00034615,7]
[392733758,1761887432249,-400.0,0.00034619,3]
[392733759,1761887432259,-25.45455827,0.00034619,3]
[392733793,1761887438104,-374.54544173,0.00034619,3]
[392733795,1761887438114,-400.0,0.00034619,2]
[392733797,1761887438124,-400.0,0.00034619,3]
[392733799,1761887438133,-1600.0,0.00034619,3]
[392733801,1761887438142,-10000.0,0.0003462,2]
[392733803,1761887438151,-774.08445326,0.0003462,2]
[392733805,1761887438160,-3853.96802954,0.00034685,2]
[392733806,1761887438170,-158.97436448,0.00034685,120]
[392733809,1761887438184,-638.3656324,0.00034888,30]
[392733811,1761887438198,-2227.68025756,0.00035018,2]
[392733813,1761887438208,-318.0,0.00035033,2]
[392733816,1761887438219,-879.86156457,0.00035122,2]
[392733818,1761887438229,-492.21,0.00035136,4]
[392733820,1761887438239,-1600.0,0.00035141,3]
[392733822,1761887438249,-319.0,0.00035144,2]
[392733824,1761887438259,-3616.0,0.00035234,7]
[392733826,1761887438268,-210.19754519,0.00035235,7]
[392733828,1761887438278,-526.23,0.00035235,4]
[392733830,1761887438287,-500.0,0.00035235,4]
[392733832,1761887438296,-500.0,0.00035236,4]
[392733834,1761887438305,-500.0,0.00035236,4]
[392733836,1761887438315,-150.0,0.00035236,30]
[392733838,1761887438325,-300.0,0.00035236,33]
[392733840,1761887438334,-500.0,0.00035236,4]
[392733842,1761887438343,-500.0,0.00035236,4]
[392733844,1761887438353,-450.0,0.00035237,36]
[392733846,1761887438363,-572.9345109,0.00035237,39]
[392733848,1761887438372,-319.0,0.00035255,2]
[392733850,1761887438382,-179.707,0.0003526,41]
[392733852,1761887438391,-318.0,0.00035281,2]
[392733854,1761887438401,-318.0,0.00035306,120]
[392733856,1761887438411,-1121.0,0.00035421,2]
[392733858,1761887438420,-321.0,0.0003568,7]
[392733860,1761887438430,-3616.0,0.00035771,120]
[392733862,1761887438439,-319.0,0.00035776,7]
[392733864,1761887438449,-318.0,0.00035782,2]
[392733866,1761887438458,-573.0197641,0.00035884,15]
[392733868,1761887438468,-500.0,0.00035884,2]
[392733870,1761887438478,-167.15607809,0.00035884,15]
[392733872,1761887438488,-500.0,0.00035884,15]
[392733874,1761887438498,-649.31215396,0.00035884,15]
[392733876,1761887438508,-468.9130741,0.00035884,2]
[392733878,1761887438518,-500.0,0.00035884,15]
[392733881,1761887438528,-500.0,0.00035884,15]
[392733883,1761887438537,-500.0,0.00035884,15]
[392733884,1761887438547,-500.0,0.00035884,15]
[392733887,1761887438557,-500.0,0.00035884,15]
[392733889,1761887438566,-500.0,0.00035884,15]
[392733891,1761887438576,-500.0,0.00035884,15]
[392733892,1761887438585,-500.0,0.00035884,15]
[392733894,1761887438595,-508.04877312,0.00035884,15]
[392733896,1761887438604,-1932.19434705,0.00035885,3]
[392733898,1761887438613,-257.2376415,0.00035968,2]
[392733901,1761887438623,-460.33874875,0.00035968,2]
[392733903,1761887438633,-151.0,0.00035968,2]
[392733905,1761887438642,-151.0,0.00035968,2]
[392733907,1761887438651,-151.0,0.00035968,2]
[392733909,1761887438660,-151.0,0.00035968,2]
[392733911,1761887438669,-151.0,0.00035968,2]
[392733913,1761887438679,-1000.0,0.00035968,2]
[392733915,1761887438688,-151.0,0.00035968,2]
[392733916,1761887438697,-151.0,0.00035968,2]
[392733918,1761887438706,-1000.0,0.00035968,2]
[392733920,1761887438715,-151.0,0.00035968,2]
[392733922,1761887438724,-151.0,0.00035968,2]
[392733924,1761887438734,-1000.0,0.00035968,2]
[392733926,1761887438743,-151.0,0.00035968,2]
[392733928,1761887438752,-151.0,0.00035968,2]
[392733930,1761887438761,-1000.0,0.00035968,2]
[392733932,1761887438770,-151.0,0.00035968,2]
[392733934,1761887438779,-151.0,0.00035968,2]
[392733936,1761887438789,-1000.0,0.00035968,2]
[392733938,1761887438801,-151.0,0.00035968,2]
[392733940,1761887438810,-152.99770644,0.00035968,2]
[392733943,1761887438821,-1000.0,0.00035968,2]
[392733945,1761887438830,-151.0,0.00035968,2]
[392733947,1761887438839,-1000.0,0.00035968,2]
[392733949,1761887438853,-151.0,0.00035968,2]
[392733951,1761887438863,-926.26437179,0.00035968,2]
[392733953,1761887438872,-151.0,0.00035968,2]
[392733955,1761887438884,-151.0,0.00035968,2]
[392733957,1761887438893,-151.0,0.00035968,2]
[392733959,1761887438903,-151.0,0.00035968,2]
[392733961,1761887438912,-151.0,0.00035968,2]
[392733962,1761887438921,-151.0,0.00035968,2]
[392733964,1761887438930,-151.0,0.00035968,2]
[392733966,1761887438940,-151.0,0.00035968,2]
[392733969,1761887438950,-151.0,0.00035968,2]
[392733970,1761887438959,-526.23,0.0003597,4]
[392733972,1761887438969,-500.0,0.00035972,4]
[392733974,1761887438979,-500.0,0.00035973,5]
[392733977,1761887438988,-500.0,0.00035973,5]
[392733979,1761887438998,-506.00400073,0.00035973,5]
[392733980,1761887439007,-501.00796453,0.00035973,5]
[392733983,1761887439016,-500.0,0.00035973,5]
[392733985,1761887439025,-500.0,0.00035973,5]
[392733986,1761887439035,-500.0,0.00035973,5]
[392733989,1761887439044,-500.0,0.00035973,5]
[392733990,1761887439053,-500.0,0.00035973,5]
[392733993,1761887439063,-598.69461423,0.00035973,5]
[392733994,1761887439072,-500.0,0.00035973,5]
[392733996,1761887439081,-500.0,0.00035973,5]
[392733998,1761887439091,-502.07679343,0.00035973,5]
[392734001,1761887439100,-500.0,0.00035973,5]
[392734002,1761887439109,-500.0,0.00035973,5]
[392734004,1761887439118,-215.11181203,0.00035973,5]
[392734006,1761887439128,-500.0,0.00035973,5]
[392734008,1761887439137,-500.0,0.00035973,5]
[392734010,1761887439147,-383.8,0.0003598,3]
[392734012,1761887439156,-191.9,0.0003598,3]
[392734014,1761887439165,-575.71,0.0003598,3]